[Event "Rapidturnier Deutsche Meister"]
[Site "Leipzig"]
[Date "2020.10.03"]
[Round "4.9"]
[White "Bastian, Herbert"]
[Black "Espig, Lutz"]
[Result "1-0"]
[ECO "A04"]
[WhiteElo "2269"]
[BlackElo "2256"]
[Annotator "ChessBase"]
[PlyCount "49"]
[EventDate "2020.10.03"]
[EventType "swiss"]
[EventCountry "GER"]
[SourceTitle "playchess.com"]
[Source "ChessBase"]
[SourceQuality "1"]
[TimeControl "900+5"]

1. e4 {[%emt 0:00:00]} c5 {[%emt 0:00:00]} 2. Nc3 {[%emt 0:00:02]} e6 {[%emt 0:00:05]} 3. g3 {[%emt 0:00:08]} Nc6 {[%emt 0:00:04]} 4. Bg2 {[%emt 0:00:02]} g6 {[%emt 0:00:07]} 5. Nf3 {[%emt 0:01:33]} Bg7 {[%emt 0:00:04]} 6. O-O {[%emt 0:00:01]} Nge7 {[%emt 0:00:10]} 7. d3 {[%emt 0:00:24]} d6 {[%emt 0:00:12]} 8. Be3 {[%emt 0:00:49]} Nd4 {[%emt 0:00:08]} 9. Qd2 {[%emt 0:00:53]} O-O {[%emt 0:00:11]} 10. Bh6 {[%emt 0:00:19]} Nxf3+ {[%emt 0:01:30]} 11. Bxf3 {[%emt 0:00:03]} e5 {[%emt 0:00:03]} 12. Bxg7 {[%emt 0:00:16]} Kxg7 {[%emt 0:00:01]} 13. Bg2 {[%emt 0:00:05]} Be6 {[%emt 0:00:21]} 14. f4 {[%emt 0:00:22]} Qd7 {[%emt 0:00:21]} 15. Rf2 {[%emt 0:00:07]} exf4 {[%emt 0:00:21]} 16. Rxf4 {[%emt 0:00:26]} f5 {[%emt 0:01:09]} 17. Raf1 {[%emt 0:00:32]} fxe4 {[%emt 0:00:19]} 18. Nxe4 {[%emt 0:00:34]} Rxf4 {[%emt 0:01:43]} 19. Qxf4 {[%emt 0:00:22]} Nf5 {[%emt 0:00:32]} 20. g4 {[%emt 0:01:35]} Nd4 {[%emt 0:00:12]} 21. Qf6+ {[%emt 0:00:34]} Kg8 {[%emt 0:00:11]} 22. Ng5 {[%emt 0:00:22]} Re8 {[%emt 0:01:42]} 23. c3 {[%emt 0:02:02]} Ne2+ {[%emt 0:02:47]} 24. Kh1 {[%emt 0:00:10]} Qg7 {[%emt 0:04:03]} 25. Nxe6 {[%emt 0:00:28]} 1-0

[Event "Rapidturnier Deutsche Meister"]
[Site "Leipzig"]
[Date "2020.10.03"]
[Round "5.1"]
[White "Baumbach, Friedrich"]
[Black "Espig, Lutz"]
[Result "0-1"]
[ECO "A81"]
[WhiteElo "2127"]
[BlackElo "2256"]
[Annotator "ChessBase"]
[PlyCount "63"]
[EventDate "2020.10.03"]
[EventType "swiss"]
[EventCountry "GER"]
[SourceTitle "playchess.com"]
[Source "ChessBase"]
[SourceQuality "1"]
[TimeControl "900+5"]

1. d4 {[%emt 0:00:00]} f5 {[%emt 0:00:00]} 2. Nf3 {[%emt 0:00:05]} Nf6 {[%emt 0:00:05]} 3. g3 g6 {[%emt 0:00:04]} 4. Bg2 {[%emt 0:00:09]} Bg7 5. O-O {[%emt 0:00:06]} O-O {[%emt 0:00:11]} 6. b3 {[%emt 0:00:05]} c5 {[%emt 0:00:11]} 7. c4 {[%emt 0:00:09]} Ne4 {[%emt 0:00:14]} 8. Bb2 {[%emt 0:00:05]} Nc6 {[%emt 0:00:08]} 9. e3 {[%emt 0:00:17]} d6 {[%emt 0:00:18]} 10. Qc2 {[%emt 0:00:18]} e6 {[%emt 0:00:27]} 11. Nbd2 {[%emt 0:00:09]} cxd4 {[%emt 0:01:33]} 12. Nxd4 {[%emt 0:00:43]} Nxd4 {[%emt 0:00:15]} 13. Bxd4 {[%emt 0:00:16]} Bxd4 {[%emt 0:01:07]} 14. exd4 {[%emt 0:00:02]} d5 {[%emt 0:01:36]} 15. Rac1 {[%emt 0:00:36]} Bd7 {[%emt 0:00:24]} 16. Nf3 {[%emt 0:00:31]} Rc8 {[%emt 0:00:27]} 17. Ne5 {[%emt 0:00:33]} Bc6 {[%emt 0:00:45]} 18. Rfd1 {[%emt 0:01:23]} Ng5 {[%emt 0:00:28]} 19. Qe2 {[%emt 0:00:30]} Nf7 {[%emt 0:00:55]} 20. Nxc6 {[%emt 0:00:52]} bxc6 {[%emt 0:00:15]} 21. cxd5 {[%emt 0:03:46]} exd5 {[%emt 0:00:18]} 22. Rc5 {[%emt 0:00:14]} Qd7 {[%emt 0:02:13]} 23. Rdc1 {[%emt 0:00:24]} Ng5 {[%emt 0:01:06]} 24. Qe3 {[%emt 0:01:16]} Ne6 {[%emt 0:01:10]} 25. R5c2 {[%emt 0:00:51]} Rfe8 {[%emt 0:01:19]} 26. Qd3 {[%emt 0:00:27]} Rc7 {[%emt 0:00:30]} 27. Re2 {[%emt 0:01:26]} Ng7 {[%emt 0:00:26]} 28. Re5 {[%emt 0:00:20]} Rxe5 {[%emt 0:00:06]} 29. dxe5 {[%emt 0:00:02]} Ne6 {[%emt 0:00:06]} 30. f4 {[%emt 0:00:46]} Kg7 {[%emt 0:00:09]} 31. h3 {[%emt 0:00:55]} Rb7 {[%emt 0:00:06]} 32. Qc3 {[%emt 0:00:24]} 0-1

[Event "Rapidturnier Deutsche Meister"]
[Site "Leipzig"]
[Date "2020.10.03"]
[Round "5.2"]
[White "Knaak, Rainer"]
[Black "Paehtz, Thomas"]
[Result "1-0"]
[ECO "A40"]
[WhiteElo "2476"]
[BlackElo "2297"]
[Annotator "ChessBase"]
[PlyCount "83"]
[EventDate "2020.10.03"]
[EventType "swiss"]
[EventCountry "GER"]
[SourceTitle "playchess.com"]
[Source "ChessBase"]
[SourceQuality "1"]
[TimeControl "900+5"]

1. d4 {[%emt 0:00:00]} e6 {[%emt 0:00:00]} 2. c4 {[%emt 0:00:03]} b6 {[%emt 0:00:01]} 3. e4 {[%emt 0:00:13]} Bb7 {[%emt 0:00:02]} 4. Bd3 {[%emt 0:00:02]} Nc6 {[%emt 0:00:04]} 5. Ne2 {[%emt 0:00:07]} Nb4 {[%emt 0:00:04]} 6. O-O {[%emt 0:00:07]} g6 {[%emt 0:01:53]} 7. a3 {[%emt 0:00:34]} Nxd3 {[%emt 0:00:03]} 8. Qxd3 {[%emt 0:00:01]} Bg7 {[%emt 0:00:07]} 9. Nbc3 {[%emt 0:00:10]} Ne7 {[%emt 0:00:23]} 10. d5 {[%emt 0:00:48]} f5 {[%emt 0:00:22]} 11. f3 {[%emt 0:00:36]} O-O {[%emt 0:00:14]} 12. Be3 {[%emt 0:00:06]} a6 {[%emt 0:01:25]} 13. Rfd1 {[%emt 0:00:28]} d6 {[%emt 0:01:06]} 14. dxe6 {[%emt 0:02:04]} Nc6 {[%emt 0:00:43]} 15. f4 {[%emt 0:01:29]} Qe8 {[%emt 0:00:42]} 16. exf5 {[%emt 0:01:14]} gxf5 {[%emt 0:00:02]} 17. Nd5 {[%emt 0:00:26]} Rc8 {[%emt 0:00:01]} 18. Nd4 {[%emt 0:00:04]} Ne7 {[%emt 0:02:50]} 19. Nxe7+ {[%emt 0:00:15]} Qxe7 {[%emt 0:00:02]} 20. Nxf5 {[%emt 0:00:03]} Rxf5 {[%emt 0:00:48]} 21. Qxf5 {[%emt 0:00:02]} Rf8 {[%emt 0:00:01]} 22. Qg4 {[%emt 0:00:16]} Be4 {[%emt 0:00:01]} 23. Bd4 {[%emt 0:00:17]} Bf5 {[%emt 0:00:03]} 24. Qxg7+ {[%emt 0:00:05]} Qxg7 {[%emt 0:00:01]} 25. Bxg7 {[%emt 0:00:01]} Kxg7 {[%emt 0:00:02]} 26. Re1 {[%emt 0:00:40]} Kf6 {[%emt 0:00:02]} 27. e7 {[%emt 0:00:08]} Re8 {[%emt 0:00:01]} 28. Re3 {[%emt 0:00:20]} Be6 {[%emt 0:00:32]} 29. b3 {[%emt 0:00:03]} Rxe7 {[%emt 0:00:21]} 30. Rae1 {[%emt 0:00:06]} Re8 {[%emt 0:00:07]} 31. Kf2 {[%emt 0:00:58]} h5 {[%emt 0:00:20]} 32. g3 {[%emt 0:00:08]} c5 {[%emt 0:00:56]} 33. h3 {[%emt 0:00:08]} b5 {[%emt 0:00:07]} 34. g4 {[%emt 0:00:08]} Kf7 {[%emt 0:00:16]} 35. f5 {[%emt 0:00:09]} Bd7 {[%emt 0:00:01]} 36. Rxe8 {[%emt 0:00:02]} Bxe8 {[%emt 0:00:02]} 37. Kf3 {[%emt 0:00:16]} Bc6+ {[%emt 0:00:03]} 38. Kf4 {[%emt 0:00:02]} d5 {[%emt 0:00:21]} 39. g5 {[%emt 0:00:37]} dxc4 {[%emt 0:00:31]} 40. g6+ {[%emt 0:00:02]} Kf8 {[%emt 0:00:19]} 41. bxc4 {[%emt 0:00:03]} bxc4 {[%emt 0:01:20]} 42. Re5 {[%emt 0:00:05]} 1-0

[Event "Rapidturnier Deutsche Meister"]
[Site "Leipzig"]
[Date "2020.10.03"]
[Round "5.3"]
[White "Kunze, Kerstin"]
[Black "Heinatz, Gundula"]
[Result "1/2-1/2"]
[ECO "B31"]
[WhiteElo "2037"]
[BlackElo "2197"]
[Annotator "ChessBase"]
[PlyCount "25"]
[EventDate "2020.10.03"]
[EventType "swiss"]
[EventCountry "GER"]
[SourceTitle "playchess.com"]
[Source "ChessBase"]
[SourceQuality "1"]
[TimeControl "900+5"]

1. e4 {[%emt 0:00:00]} c5 {[%emt 0:00:00]} 2. Nf3 {[%emt 0:00:01]} Nc6 {[%emt 0:00:00]} 3. Bb5 {[%emt 0:00:07]} g6 {[%emt 0:00:00]} 4. O-O {[%emt 0:00:04]} Bg7 {[%emt 0:00:01]} 5. c3 {[%emt 0:00:04]} e5 {[%emt 0:00:09]} 6. d3 {[%emt 0:01:20]} Nge7 {[%emt 0:00:11]} 7. Be3 {[%emt 0:00:13]} d6 {[%emt 0:00:19]} 8. d4 {[%emt 0:00:09]} cxd4 {[%emt 0:00:53]} 9. cxd4 {[%emt 0:00:03]} exd4 {[%emt 0:00:08]} 10. Bxd4 {[%emt 0:00:37]} O-O {[%emt 0:00:08]} 11. Bxg7 {[%emt 0:01:05]} Kxg7 {[%emt 0:00:02]} 12. Nc3 {[%emt 0:00:30]} a6 {[%emt 0:00:30]} 13. Be2 {[%emt 0:00:19]} 1/2-1/2

[Event "Rapidturnier Deutsche Meister"]
[Site "Leipzig"]
[Date "2020.10.03"]
[Round "5.4"]
[White "Hecht, Hans-Joachim"]
[Black "Boensch, Uwe"]
[Result "0-1"]
[ECO "D55"]
[WhiteElo "2311"]
[BlackElo "2508"]
[Annotator "ChessBase"]
[PlyCount "50"]
[EventDate "2020.10.03"]
[EventType "swiss"]
[EventCountry "GER"]
[SourceTitle "playchess.com"]
[Source "ChessBase"]
[SourceQuality "1"]
[TimeControl "900+5"]

1. d4 {[%emt 0:00:00]} d5 {[%emt 0:00:00]} 2. c4 {[%emt 0:00:00]} e6 {[%emt 0:00:00]} 3. Nc3 {[%emt 0:00:00]} Nf6 {[%emt 0:00:00]} 4. Bg5 {[%emt 0:00:01]} Be7 {[%emt 0:00:01]} 5. e3 {[%emt 0:00:01]} h6 {[%emt 0:00:02]} 6. Bxf6 {[%emt 0:00:01]} Bxf6 {[%emt 0:00:01]} 7. Nf3 {[%emt 0:00:01]} c6 {[%emt 0:00:08]} 8. Rc1 {[%emt 0:00:02]} O-O {[%emt 0:00:08]} 9. h4 {[%emt 0:00:01]} Nd7 {[%emt 0:00:02]} 10. g4 {[%emt 0:00:01]} Be7 {[%emt 0:00:21]} 11. g5 {[%emt 0:00:02]} h5 {[%emt 0:00:02]} 12. Nd2 {[%emt 0:00:02]} g6 {[%emt 0:00:01]} 13. f4 {[%emt 0:00:02]} dxc4 {[%emt 0:00:32]} 14. Nxc4 {[%emt 0:00:12]} b5 {[%emt 0:00:50]} 15. Ne5 {[%emt 0:00:08]} Nxe5 {[%emt 0:00:02]} 16. fxe5 {[%emt 0:00:37]} c5 {[%emt 0:00:14]} 17. Bg2 {[%emt 0:02:37]} Ba6 {[%emt 0:01:00]} 18. Ne4 {[%emt 0:01:47]} Rc8 {[%emt 0:02:53]} 19. Nxc5 {[%emt 0:01:17]} Bxc5 {[%emt 0:00:03]} 20. Rxc5 {[%emt 0:00:01]} Rxc5 {[%emt 0:00:39]} 21. dxc5 {[%emt 0:00:02]} Qa5+ {[%emt 0:00:03]} 22. Kf2 {[%emt 0:03:20]} Rd8 {[%emt 0:00:01]} 23. b4 {[%emt 0:00:01]} Qxa2+ {[%emt 0:00:22]} 24. Ke1 {[%emt 0:01:01]} Qa5 {[%emt 0:00:05]} 25. Qd5 {[%emt 0:00:05]} Qc7 0-1

[Event "Rapidturnier Deutsche Meister"]
[Site "Leipzig"]
[Date "2020.10.03"]
[Round "5.5"]
[White "Seidemann, Ulricke"]
[Black "Wagner-Michel, Annett"]
[Result "1-0"]
[ECO "A55"]
[WhiteElo "2043"]
[BlackElo "2011"]
[Annotator "ChessBase"]
[PlyCount "67"]
[EventDate "2020.10.03"]
[EventType "swiss"]
[EventCountry "GER"]
[SourceTitle "playchess.com"]
[Source "ChessBase"]
[SourceQuality "1"]
[TimeControl "900+5"]

1. c4 {[%emt 0:00:00]} e5 {[%emt 0:00:00]} 2. e4 {[%emt 0:00:05]} Nf6 {[%emt 0:00:05]} 3. Nc3 {[%emt 0:00:04]} c6 {[%emt 0:00:04]} 4. Nf3 {[%emt 0:01:09]} d6 {[%emt 0:00:21]} 5. d4 {[%emt 0:00:11]} Qc7 {[%emt 0:00:36]} 6. Be2 {[%emt 0:00:39]} Be7 {[%emt 0:00:18]} 7. O-O {[%emt 0:00:02]} O-O {[%emt 0:00:02]} 8. b3 {[%emt 0:00:52]} Nbd7 {[%emt 0:00:24]} 9. Bb2 {[%emt 0:00:02]} a6 {[%emt 0:01:03]} 10. Rc1 Re8 {[%emt 0:00:02]} 11. dxe5 {[%emt 0:00:42]} dxe5 {[%emt 0:00:05]} 12. Qc2 {[%emt 0:00:25]} Nf8 {[%emt 0:00:12]} 13. Na4 {[%emt 0:00:38]} Ng6 {[%emt 0:00:13]} 14. c5 {[%emt 0:00:34]} Be6 {[%emt 0:00:55]} 15. Bc4 {[%emt 0:00:33]} Bxc4 {[%emt 0:00:36]} 16. Qxc4 {[%emt 0:00:02]} Rad8 {[%emt 0:00:06]} 17. Rfd1 {[%emt 0:00:28]} Bf8 {[%emt 0:00:44]} 18. h3 {[%emt 0:00:01]} h6 {[%emt 0:00:09]} 19. b4 {[%emt 0:00:47]} a5 {[%emt 0:00:32]} 20. a3 {[%emt 0:00:36]} axb4 {[%emt 0:00:59]} 21. axb4 {[%emt 0:00:01]} Qe7 {[%emt 0:00:06]} 22. Qc3 {[%emt 0:00:55]} Nxe4 {[%emt 0:00:23]} 23. Qe1 {[%emt 0:00:15]} f5 {[%emt 0:00:16]} 24. Nb6 {[%emt 0:00:08]} Qe6 {[%emt 0:00:51]} 25. Rxd8 {[%emt 0:00:47]} Rxd8 {[%emt 0:00:02]} 26. Nc4 {[%emt 0:00:01]} Re8 {[%emt 0:00:40]} 27. Nfxe5 {[%emt 0:00:21]} Nxe5 {[%emt 0:00:07]} 28. Nxe5 {[%emt 0:00:16]} Qb3 {[%emt 0:00:21]} 29. Bd4 {[%emt 0:01:02]} Be7 {[%emt 0:00:40]} 30. f3 {[%emt 0:00:08]} Qd5 {[%emt 0:00:40]} 31. Ba1 {[%emt 0:00:15]} Nf6 {[%emt 0:00:25]} 32. Rd1 {[%emt 0:00:12]} Qa2 {[%emt 0:00:14]} 33. Qf2 {[%emt 0:00:28]} Nd5 {[%emt 0:00:09]} 34. Qxa2 {[%emt 0:00:05]} 1-0

[Event "Rapidturnier Deutsche Meister"]
[Site "Leipzig"]
[Date "2020.10.03"]
[Round "5.6"]
[White "Burchardt, Brigitte"]
[Black "Goehler, Antje"]
[Result "1/2-1/2"]
[ECO "B50"]
[WhiteElo "2067"]
[BlackElo "2102"]
[Annotator "ChessBase"]
[PlyCount "32"]
[EventDate "2020.10.03"]
[EventType "swiss"]
[EventCountry "GER"]
[SourceTitle "playchess.com"]
[Source "ChessBase"]
[SourceQuality "1"]
[TimeControl "900+5"]

1. e4 {[%emt 0:00:00]} c5 {[%emt 0:00:00]} 2. b3 {[%emt 0:00:00]} d6 {[%emt 0:00:00]} 3. Bb2 {[%emt 0:00:00]} e6 {[%emt 0:00:02]} 4. Nf3 {[%emt 0:00:03]} Nf6 {[%emt 0:00:03]} 5. Nc3 {[%emt 0:00:02]} a6 {[%emt 0:00:02]} 6. a4 {[%emt 0:00:02]} Be7 {[%emt 0:00:03]} 7. g3 {[%emt 0:00:19]} Qc7 {[%emt 0:00:03]} 8. Bg2 {[%emt 0:00:02]} O-O {[%emt 0:00:04]} 9. O-O {[%emt 0:00:03]} Nc6 {[%emt 0:00:05]} 10. d3 {[%emt 0:00:17]} Rd8 {[%emt 0:00:08]} 11. d4 {[%emt 0:00:51]} cxd4 {[%emt 0:00:04]} 12. Nxd4 {[%emt 0:00:02]} Bd7 {[%emt 0:00:05]} 13. Kh1 {[%emt 0:00:47]} Rac8 {[%emt 0:00:06]} 14. Rc1 {[%emt 0:00:11]} Nxd4 {[%emt 0:00:09]} 15. Qxd4 {[%emt 0:00:02]} Qc5 {[%emt 0:00:13]} 16. Ne2 {[%emt 0:00:37]} Qxd4 {[%emt 0:00:06]} 1/2-1/2

[Event "Rapidturnier Deutsche Meister"]
[Site "Leipzig"]
[Date "2020.10.03"]
[Round "5.8"]
[White "Mai, Iris"]
[Black "Just, Gabriele"]
[Result "1-0"]
[ECO "A85"]
[WhiteElo "2021"]
[BlackElo "1837"]
[Annotator "ChessBase"]
[PlyCount "83"]
[EventDate "2020.10.03"]
[EventType "swiss"]
[EventCountry "GER"]
[SourceTitle "playchess.com"]
[Source "ChessBase"]
[SourceQuality "1"]
[TimeControl "900+5"]

1. d4 {[%emt 0:00:00]} e6 {[%emt 0:00:00]} 2. c4 {[%emt 0:00:04]} f5 {[%emt 0:00:01]} 3. Nc3 {[%emt 0:00:05]} Nf6 {[%emt 0:00:38]} 4. Nf3 {[%emt 0:00:42]} Bb4 {[%emt 0:00:06]} 5. Qb3 {[%emt 0:00:41]} a5 {[%emt 0:00:12]} 6. a3 {[%emt 0:00:17]} Bxc3+ {[%emt 0:00:05]} 7. Qxc3 {[%emt 0:00:04]} d6 {[%emt 0:00:04]} 8. b3 {[%emt 0:00:49]} O-O {[%emt 0:00:12]} 9. e3 {[%emt 0:00:10]} Qe8 {[%emt 0:00:20]} 10. Bb2 {[%emt 0:00:31]} Nbd7 {[%emt 0:01:03]} 11. g3 {[%emt 0:00:25]} Ne4 {[%emt 0:00:18]} 12. Qc2 {[%emt 0:00:02]} Qh5 {[%emt 0:01:16]} 13. Bg2 {[%emt 0:00:04]} Re8 {[%emt 0:00:15]} 14. Rd1 {[%emt 0:00:49]} Ndf6 {[%emt 0:01:15]} 15. h3 {[%emt 0:02:20]} Bd7 {[%emt 0:01:13]} 16. Nd2 {[%emt 0:03:41]} Bc6 {[%emt 0:01:43]} 17. Nxe4 {[%emt 0:00:03]} Bxe4 {[%emt 0:00:45]} 18. Bxe4 {[%emt 0:00:04]} Nxe4 {[%emt 0:00:48]} 19. Qe2 {[%emt 0:00:03]} Qh6 {[%emt 0:01:02]} 20. Qf3 {[%emt 0:01:28]} c6 {[%emt 0:01:10]} 21. Qf4 {[%emt 0:00:36]} g5 {[%emt 0:00:56]} 22. Qf3 {[%emt 0:00:05]} Re7 {[%emt 0:00:47]} 23. d5 {[%emt 0:00:57]} Rf8 {[%emt 0:00:24]} 24. dxe6 {[%emt 0:00:23]} Rxe6 {[%emt 0:00:19]} 25. h4 {[%emt 0:00:14]} f4 {[%emt 0:00:51]} 26. hxg5 {[%emt 0:01:30]} Nxg5 {[%emt 0:00:51]} 27. Qg2 {[%emt 0:00:02]} Qg6 {[%emt 0:00:19]} 28. gxf4 {[%emt 0:00:19]} Rxf4 {[%emt 0:00:04]} 29. Rg1 {[%emt 0:00:02]} h6 {[%emt 0:00:04]} 30. Kd2 {[%emt 0:00:12]} Qe4 {[%emt 0:00:15]} 31. Qxe4 {[%emt 0:00:03]} Rfxe4 {[%emt 0:00:02]} 32. f4 {[%emt 0:00:06]} Rxe3 {[%emt 0:00:07]} 33. fxg5 {[%emt 0:00:01]} Re2+ {[%emt 0:00:03]} 34. Kc1 {[%emt 0:00:01]} h5 {[%emt 0:00:05]} 35. g6 {[%emt 0:00:02]} Rf2 {[%emt 0:00:05]} 36. Rde1 {[%emt 0:00:02]} Ree2 {[%emt 0:00:03]} 37. Rxe2 {[%emt 0:00:01]} Rxe2 {[%emt 0:00:02]} 38. g7 {[%emt 0:00:01]} h4 {[%emt 0:00:04]} 39. Rf1 {[%emt 0:00:01]} Re8 {[%emt 0:00:08]} 40. Rf4 {[%emt 0:00:10]} Re1+ {[%emt 0:00:09]} 41. Kd2 {[%emt 0:00:01]} Rg1 {[%emt 0:00:04]} 42. Rxh4 {[%emt 0:00:06]} 1-0